bitfinex-derivatives/quotes_ETHF0:USTF0_20230702
["timestamp","ask_amount","ask_price","bid_price","bid_amount"]
[1688322958630,4.20378611,1908.4,1908.3,5.61408]
[1688322960727,4.20378611,1908.4,1908.3,5.90079635]
[1688322961533,0.99598611,1908.4,1908.3,5.90079635]
[1688322962034,0.42850199,1908.4,1908.3,9.19879635]
[1688322963437,3.63630199,1908.4,1908.3,9.19879635]
[1688322963632,3.92301834,1908.4,1908.3,8.91208]
[1688322964233,3.92301834,1908.4,1908.2,3.303]
[1688322964431,0.56748412,1908.3,1908.1,0.31443]
[1688322964629,3.52223,1908.2,1908.1,5.53463]
[1688322964936,0.31443,1908.2,1908.1,5.82134635]
[1688322965739,3.52223,1908.2,1908.1,5.82134635]
[1688322965925,3.80894635,1908.2,1908.1,5.53463]
[1688322973533,3.80894635,1908.2,1908.1,5.2202]
[1688322973743,3.80894635,1908.2,1908.0,5.71247605]
[1688322974135,3.80894635,1908.2,1908.0,10.70757605]
[1688322975943,8.65144635,1908.2,1908.0,10.70757605]
[1688322977543,9.07063622,1908.2,1908.0,10.70757605]
[1688322979339,0.56748412,1908.1,1908.0,10.70757605]
[1688322979744,0.88192412,1908.1,1908.0,10.70757605]
[1688322981048,0.88192412,1908.1,1908.0,10.9942924]
[1688322985645,0.31444,1908.1,1908.0,10.9942924]
[1688322989047,0.60115635,1908.1,1908.0,10.70757605]
[1688322989444,0.60115635,1908.1,1908.0,10.9942924]
[1688322990646,0.31444,1908.1,1908.0,10.9942924]
[1688322996358,4.78107315,1908.6,1908.0,23.69074017]
[1688322996359,0.94322,1908.6,1908.0,23.69074017]
[1688322996560,0.31436,1908.7,1908.5,3.303]
[1688322996860,0.31436,1908.7,1908.6,1.16856047]
[1688322997156,14.41942,1908.8,1908.6,1.16856047]
[1688322997550,14.70613635,1908.8,1908.6,0.31436]
[1688322997961,3.52214,1908.7,1908.6,0.31436]
[1688322998158,4.08962412,1908.7,1908.6,0.31436]
[1688322999062,7.39262412,1908.7,1908.5,0.7859]
[1688323000057,0.28671635,1908.6,1908.5,0.7859]
[1688323000259,0.60107635,1908.6,1908.5,0.7859]
[1688323002770,0.60107635,1908.6,1908.3,0.94308]
[1688323002771,3.90407635,1908.6,1908.3,0.94308]
[1688323002975,3.2078,1908.4,1908.3,0.94308]
[1688323003269,3.80890635,1908.4,1908.3,0.94308]
[1688323003471,3.87583632,1908.4,1908.3,0.94308]
[1688323005471,7.16783632,1908.4,1908.3,0.31441]
[1688323005672,7.10090635,1908.4,1908.2,0.78604]
[1688323005969,4.15989412,1908.3,1908.2,0.78604]
[1688323006369,4.15989412,1908.3,1908.2,0.89420862]
[1688323006565,4.15989412,1908.3,1908.2,0.78604]
[1688323006765,4.15989412,1908.3,1908.2,1.07275635]
[1688323007474,4.15989412,1908.3,1908.2,0.78604]
[1688323009671,4.15989412,1908.3,1908.2,1.07275635]
[1688323011986,3.2078,1908.4,1908.2,4.35375635]
[1688323012179,0.0630462,1908.3,1908.2,4.35375635]
[1688323012383,0.31439,1908.4,1908.2,4.35375635]
[1688323012586,0.06356063,1908.3,1908.2,4.35375635]
[1688323012880,0.31441,1908.3,1908.2,4.35375635]
[1688323013087,0.37795919,1908.3,1908.2,4.35375635]
[1688323024003,0.66467554,1908.3,1908.2,4.35375635]
[1688323026405,0.37795919,1908.3,1908.2,4.35375635]
[1688323038100,0.66467554,1908.3,1908.2,4.35375635]
[1688323040011,0.66467554,1908.3,1908.2,4.06704]
[1688323041203,0.66467554,1908.3,1908.2,4.35375635]
[1688323042003,0.66467554,1908.3,1908.2,4.06704]
[1688323044000,0.37795919,1908.3,1908.2,4.35375635]
[1688323044397,0.06354919,1908.3,1908.2,7.58355635]
[1688323044601,0.41810076,1908.4,1908.2,8.95373655]
[1688323044808,0.41810076,1908.4,1908.3,3.298]
[1688323045008,0.31436,1908.6,1908.3,4.17989412]
[1688323045216,0.31436,1908.6,1908.4,8.4603]
[1688323045504,0.31436,1908.6,1908.5,0.60108635]
[1688323045701,0.31436,1908.6,1908.5,1.16857047]
[1688323048503,0.42287178,1908.6,1908.5,1.16857047]
[1688323051809,3.63067178,1908.6,1908.5,1.16857047]
[1688323052814,3.63067178,1908.6,1908.5,4.47157047]
[1688323053204,4.48487225,1908.6,1908.5,3.61737]
[1688323055715,7.78787225,1908.6,1908.5,0.31437]
[1688323057717,4.48487225,1908.6,1908.5,0.31437]
[1688323059716,1.27707225,1908.6,1908.5,0.31437]
[1688323059913,4.48487225,1908.6,1908.5,0.31437]
[1688323065010,4.48487225,1908.6,1908.5,0.60108635]
[1688323065717,4.48487225,1908.6,1908.5,0.31437]
[1688323072227,3.63067178,1908.6,1908.5,0.31437]
[1688323072418,3.63067178,1908.6,1908.5,0.60108635]
[1688323072724,3.63067178,1908.6,1908.5,3.90408635]
[1688323075027,3.91738813,1908.6,1908.5,3.61737]
[1688323080823,8.69846128,1908.6,1908.5,3.61737]
[1688323082831,8.69846128,1908.6,1908.5,0.31437]
[1688323083123,3.91738813,1908.6,1908.5,0.31437]
[1688323085920,3.63067178,1908.6,1908.5,0.60108635]
[1688323086229,0.10851178,1908.6,1908.5,3.89908635]
[1688323086522,0.08093451,1908.6,1908.5,3.89908635]
[1688323087028,4.7889317,1908.9,1908.5,3.89908635]
[1688323087326,5.19766264,1908.9,1908.8,3.281]
[1688323087531,5.19766264,1908.9,1908.8,3.59533]
[1688323087930,5.48437899,1908.9,1908.8,3.59533]
[1688323088430,0.70330584,1908.9,1908.8,3.59533]
[1688323088731,0.70330584,1908.9,1908.8,3.88204635]
[1688323091431,0.41658949,1908.9,1908.8,3.88204635]
[1688323091631,0.41658949,1908.9,1908.8,4.44953047]
[1688323093037,4.30961584,1908.9,1908.8,0.31433]
[1688323093425,4.46034617,1908.9,1908.8,0.31433]
[1688323094828,4.47134617,1908.9,1908.7,0.78582]
[1688323095137,7.06728412,1908.8,1908.7,0.31434]
[1688323095326,7.38161412,1908.8,1908.7,0.31434]
[1688323095524,7.53229936,1908.8,1908.7,0.31434]
[1688323099841,7.21796936,1908.8,1908.7,0.31434]
[1688323100740,6.65048524,1908.8,1908.7,0.60105635]
[1688323101548,3.35848524,1908.8,1908.7,3.90405635]
[1688323102654,3.35848524,1908.8,1908.7,3.61734]
[1688323102853,3.35848524,1908.8,1908.7,0.31434]
[1688323103256,3.67281524,1908.8,1908.7,0.31434]
[1688323107157,3.35848524,1908.8,1908.7,0.60105635]
[1688323107550,3.64520159,1908.8,1908.7,0.60105635]
[1688323110267,0.15068524,1908.8,1908.7,0.60105635]
[1688323110463,4.00889949,1908.9,1908.7,0.60105635]
[1688323110758,0.15034016,1908.8,1908.7,0.60105635]
[1688323111059,4.00889949,1908.9,1908.7,0.60105635]
[1688323111259,0.14861803,1908.8,1908.7,0.60105635]
[1688323111560,4.00889949,1908.9,1908.7,0.60105635]
[1688323111759,0.14860689,1908.8,1908.7,0.60105635]
[1688323111960,4.00889949,1908.9,1908.8,0.56748412]
[1688323112268,4.15749507,1908.9,1908.8,0.88181412]
[1688323112764,0.87949507,1908.9,1908.8,0.88181412]
[1688323115158,1.16621142,1908.9,1908.8,0.88181412]
[1688323117957,1.16621142,1908.9,1908.8,0.31433]
[1688323124365,0.87949507,1908.9,1908.8,0.31433]
[1688323124573,0.56518507,1908.9,1908.8,0.31433]
[1688323126866,0.56518507,1908.9,1908.8,3.59533]
[1688323129671,1.16621142,1908.9,1908.8,0.31433]
[1688323129878,4.57421142,1908.9,1908.7,0.31434]
[1688323130068,6.80013,1908.8,1908.7,0.31434]
[1688323130271,7.36761412,1908.8,1908.7,0.31434]
[1688323130474,7.51763894,1908.8,1908.7,0.31434]
[1688323140881,7.51763894,1908.8,1908.6,0.31434]
[1688323141081,0.28671635,1908.7,1908.6,0.31434]
[1688323141280,0.60105635,1908.7,1908.6,0.31434]
[1688323141587,0.75083212,1908.7,1908.6,0.31434]
[1688323145384,0.14977577,1908.7,1908.6,0.60105635]
[1688323148087,3.44177577,1908.7,1908.6,0.60105635]
[1688323148488,3.72849212,1908.7,1908.6,0.60105635]
[1688323148782,3.72849212,1908.7,1908.6,0.31434]
[1688323150583,3.72849212,1908.7,1908.6,0.60105635]
[1688323150984,3.44177577,1908.7,1908.6,0.60105635]
[1688323151184,3.72849212,1908.7,1908.6,0.60105635]
[1688323151686,4.04283212,1908.7,1908.6,0.60105635]
[1688323152783,0.75083212,1908.7,1908.6,0.60105635]
[1688323154093,0.46411577,1908.7,1908.6,0.60105635]
[1688323155396,0.89278535,1908.7,1908.6,0.60105635]
[1688323155690,0.57844535,1908.7,1908.6,0.60105635]
[1688323156078,0.8651617,1908.7,1908.6,0.60105635]
[1688323156488,0.57844535,1908.7,1908.6,0.60105635]
[1688323158792,0.8651617,1908.7,1908.6,0.60105635]
[1688323159187,0.57844535,1908.7,1908.6,0.60105635]
[1688323162596,0.89278535,1908.7,1908.6,0.60105635]
[1688323164382,1.1795017,1908.7,1908.6,0.31434]
[1688323168396,0.8651617,1908.7,1908.6,0.31434]
[1688323175516,1.1795017,1908.7,1908.6,0.31434]
[1688323178613,4.3873017,1908.7,1908.6,0.31434]
[1688323187217,1.1795017,1908.7,1908.6,0.31434]
[1688323187521,1.1795017,1908.7,1908.6,0.60105635]
[1688323187916,0.89278535,1908.7,1908.6,0.60105635]
[1688323189520,1.1795017,1908.7,1908.6,0.60105635]
[1688323193933,4.3873017,1908.7,1908.6,0.60105635]
[1688323194125,4.3873017,1908.7,1908.6,0.31434]
[1688323194521,7.6903017,1908.7,1908.6,0.31434]
[1688323202827,4.3873017,1908.7,1908.6,0.31434]
[1688323204733,4.3873017,1908.7,1908.6,0.60105635]
[1688323204932,4.10058535,1908.7,1908.6,0.60105635]
[1688323205939,4.23752593,1908.7,1908.6,0.82537774]
[1688323207344,4.23752593,1908.7,1908.6,0.53866139]
[1688323211937,4.23752593,1908.7,1908.6,0.82537774]
[1688323211938,3.95080958,1908.7,1908.6,0.82537774]
[1688323212648,4.23752593,1908.7,1908.6,0.82537774]
[1688323214947,3.95080958,1908.7,1908.6,0.82537774]
[1688323215151,4.23752593,1908.7,1908.6,0.82537774]
[1688323216646,4.23752593,1908.7,1908.6,0.53866139]
[1688323216849,4.23752593,1908.7,1908.6,0.82537774]
[1688323218146,3.95080958,1908.7,1908.6,0.82537774]
[1688323218449,3.63646958,1908.7,1908.6,0.82537774]
[1688323220044,3.92318593,1908.7,1908.6,0.82537774]
[1688323221458,4.23752593,1908.7,1908.6,0.82537774]
[1688323222557,4.23752593,1908.7,1908.6,0.53866139]
[1688323222856,7.54052593,1908.7,1908.6,0.53866139]
[1688323223354,7.54052593,1908.7,1908.6,0.82537774]
[1688323223545,7.54052593,1908.7,1908.6,0.53866139]
[1688323225856,7.54052593,1908.7,1908.6,0.82537774]
[1688323227756,7.54052593,1908.7,1908.6,0.53866139]
[1688323232671,7.54052593,1908.7,1908.6,0.82537774]
[1688323236576,7.54052593,1908.7,1908.6,0.53866139]
[1688323240876,7.68611194,1908.7,1908.6,0.60105635]
[1688323244886,7.68611194,1908.7,1908.6,0.31434]
[1688323252991,7.68611194,1908.7,1908.6,0.60105635]
[1688323253302,7.08505559,1908.7,1908.6,0.60105635]
[1688323254895,0.57425559,1908.7,1908.6,3.88205635]
[1688323255088,0.14558601,1908.7,1908.6,5.25223655]
[1688323255488,0.00785855,1908.9,1908.6,5.25223655]
[1688323255796,0.00785855,1908.9,1908.8,3.303]
[1688323255987,0.00785855,1908.9,1908.8,3.61733]
[1688323256189,0.00785855,1908.9,1908.8,3.90404635]
[1688323256594,0.43148371,1908.9,1908.8,3.90404635]
[1688323256891,0.00785855,1908.9,1908.8,3.90404635]
[1688323261993,3.21565855,1908.9,1908.8,3.90404635]
[1688323262691,3.21565855,1908.9,1908.8,0.60104635]
[1688323263091,3.5023749,1908.9,1908.8,0.60104635]
[1688323263899,3.52996855,1908.9,1908.8,0.60104635]
[1688323264193,3.8166849,1908.9,1908.8,0.31433]
[1688323265491,0.75825883,1908.9,1908.8,0.31433]
[1688323265690,3.96605883,1908.9,1908.8,0.31433]
[1688323268194,3.96605883,1908.9,1908.8,3.61233]
[1688323270500,3.67934248,1908.9,1908.8,3.89904635]
[1688323270894,4.37634649,1908.9,1908.8,3.89904635]
[1688323272695,4.37634649,1908.9,1908.8,0.60104635]
[1688323273104,0.88183014,1908.9,1908.8,0.60104635]
[1688323274609,1.16854649,1908.9,1908.8,0.60104635]
[1688323276109,1.16854649,1908.9,1908.8,0.31433]
[1688323277807,4.37634649,1908.9,1908.8,0.31433]
[1688323284112,7.77334649,1908.9,1908.6,3.59535]
[1688323284318,3.52214,1908.7,1908.6,3.59535]
[1688323284705,3.67107688,1908.7,1908.6,3.59535]
[1688323284913,3.95779323,1908.7,1908.6,3.59535]
[1688323292817,7.23579323,1908.7,1908.6,0.31435]
[1688323296116,7.23579323,1908.7,1908.4,4.66843099]
[1688323296328,3.2078,1908.5,1908.4,0.94307]
[1688323296521,3.52218,1908.5,1908.4,0.94307]
[1688323296721,3.80889635,1908.5,1908.4,0.94307]
[1688323306232,4.22900097,1908.5,1908.4,0.94307]
[1688323312534,0.42010462,1908.5,1908.4,4.52778635]
[1688323312843,0.31436,1908.6,1908.4,4.52778635]
[1688323313141,0.31436,1908.6,1908.5,3.61738]
[1688323313536,0.31436,1908.6,1908.5,4.18486412]
[1688323317139,3.6264645,1908.7,1908.5,4.18486412]
[1688323317339,3.6264645,1908.7,1908.6,0.28671635]
[1688323317642,3.6264645,1908.7,1908.6,0.60107635]
[1688323320242,4.22752085,1908.7,1908.6,0.60107635]
[1688323320846,4.22752085,1908.7,1908.6,0.31436]
[1688323330454,4.22752085,1908.7,1908.4,0.94307]
[1688323330455,8.68384083,1908.7,1908.4,0.94307]
[1688323330748,3.2078,1908.5,1908.4,0.94307]
[1688323330948,3.80889635,1908.5,1908.4,0.94307]
[1688323333142,0.28671635,1908.5,1908.4,0.94307]
[1688323333348,3.49451635,1908.5,1908.4,0.94307]
[1688323333647,0.28671635,1908.5,1908.4,0.94307]
[1688323333851,0.60109635,1908.5,1908.4,0.94307]
[1688323341150,0.28671635,1908.5,1908.4,0.94307]
[1688323341356,0.60109635,1908.5,1908.4,0.94307]
[1688323342056,0.7330245,1908.7,1908.4,4.53278635]
[1688323342443,0.7330245,1908.7,1908.6,0.31436]
[1688323342647,1.01974085,1908.7,1908.6,0.31436]
[1688323342843,1.01974085,1908.7,1908.6,3.59536]
[1688323343353,0.70538085,1908.7,1908.6,3.59536]
[1688323345759,1.01972085,1908.7,1908.6,3.59536]
[1688323347660,0.70538085,1908.7,1908.6,3.59536]
[1688323350759,1.01972085,1908.7,1908.6,3.59536]
[1688323350958,0.70538085,1908.7,1908.6,3.59536]
[1688323351558,1.01972085,1908.7,1908.6,3.88207635]
[1688323351751,0.4186645,1908.7,1908.6,3.88207635]
[1688323351958,0.00785855,1908.9,1908.6,7.08987635]
[1688323352165,0.00785855,1908.9,1908.8,3.298]
[1688323352454,0.00785855,1908.9,1908.8,3.89904635]
[1688323353767,0.00785855,1908.9,1908.8,8.94054635]
[1688323355153,0.43586462,1908.9,1908.8,8.94054635]
[1688323355357,0.00785855,1908.9,1908.8,8.94054635]
[1688323355558,0.2185159,1908.9,1908.8,8.94054635]
[1688323355758,0.00785855,1908.9,1908.8,8.94054635]
[1688323355960,0.21850494,1908.9,1908.8,8.94054635]
[1688323362860,0.21850494,1908.9,1908.8,12.14834635]
[1688323364069,0.21850494,1908.9,1908.8,12.55759047]
[1688323369271,0.21850494,1908.9,1908.8,9.34979047]
[1688323369771,0.21850494,1908.9,1908.8,12.55759047]
[1688323372569,0.21850494,1908.9,1908.8,9.34979047]
[1688323372771,0.21850494,1908.9,1908.8,4.30829047]
[1688323373069,0.50522129,1908.9,1908.8,4.02157412]
[1688323374062,0.50522129,1908.9,1908.8,4.30829047]
[1688323377072,0.50522129,1908.9,1908.8,4.02157412]
[1688323379375,0.50522129,1908.9,1908.8,3.61233]
[1688323379575,4.13233129,1908.9,1908.8,3.61233]
[1688323379782,7.43533129,1908.9,1908.7,0.78583]
[1688323380078,7.33828856,1908.9,1908.7,0.78583]
[1688323380778,0.56748412,1908.8,1908.7,0.78583]
[1688323380986,0.98284842,1908.8,1908.7,0.78583]
[1688323387479,0.98284842,1908.8,1908.7,4.06683]
[1688323389893,0.4153643,1908.8,1908.7,4.35354635]
[1688323390281,0.1010343,1908.8,1908.7,4.35354635]
[1688323390487,5.43418841,1908.9,1908.7,4.37054635]
[1688323390681,5.32918841,1908.9,1908.8,3.303]
[1688323390883,5.32918841,1908.9,1908.8,3.61733]
[1688323391087,5.32918841,1908.9,1908.8,4.18481412]
[1688323391285,0.42358841,1908.9,1908.8,4.18481412]
[1688323393898,0.00785855,1908.9,1908.8,4.18481412]
[1688323400410,0.21592582,1908.9,1908.8,4.18481412]
[1688323401395,0.22960382,1908.9,1908.8,11.47724758]
[1688323401594,0.22960382,1908.9,1908.8,11.89752332]
[1688323401799,14.41337809,1909.3,1908.8,12.59060229]
[1688323402007,0.73062809,1909.3,1909.2,3.303]
[1688323402209,1.01734444,1909.3,1909.2,3.90397635]
[1688323402611,0.41637809,1909.3,1909.2,3.90397635]
[1688323403006,0.79347649,1909.4,1909.2,3.90397635]
[1688323403208,0.79347649,1909.4,1909.3,3.87048412]
[1688323403415,0.79347649,1909.4,1909.3,4.18473412]
[1688323403920,0.00785649,1909.4,1909.3,4.18473412]
[1688323405116,0.43293106,1909.4,1909.3,9.48183412]
[1688323405314,0.00785649,1909.4,1909.3,9.48183412]
[1688323408618,0.00785649,1909.4,1909.3,12.68963412]
[1688323409009,0.42097566,1909.4,1909.3,12.68963412]
[1688323410727,0.45788017,1909.4,1909.3,12.68963412]
[1688323411115,0.10248017,1909.4,1909.3,12.68963412]
[1688323411313,0.26573989,1909.4,1909.3,12.68963412]
[1688323411619,17.51896,1909.9,1909.5,3.303]
[1688323411620,0.31417,1909.8,1909.5,3.303]
[1688323411820,3.99321,1909.9,1909.7,3.281]
[1688323412129,0.00785484,1909.8,1909.7,0.78542]
[1688323412417,0.00785484,1909.8,1909.7,4.37513635]
[1688323414514,0.00785484,1909.8,1909.7,9.21133635]
[1688323415424,0.00785484,1909.8,1909.7,12.41913635]
[1688323418325,0.27541958,1909.8,1909.7,12.41913635]
[1688323418825,0.27541958,1909.8,1909.7,9.21133635]
[1688323419920,0.27541958,1909.8,1909.7,12.41913635]
[1688323422227,0.38344703,1909.8,1909.7,12.41913635]
[1688323422832,24.5642,1910.2,1909.7,15.72213635]
[1688323423023,10.6722,1910.2,1910.1,3.303]
[1688323423330,10.95891635,1910.2,1910.1,3.61711]
[1688323423528,11.52640047,1910.2,1910.1,3.61711]
[1688323423823,11.94962159,1910.2,1910.1,3.61711]
[1688323424325,11.94962159,1910.2,1910.0,3.281]
[1688323424527,3.2078,1910.1,1910.0,3.281]
[1688323424827,3.52191,1910.1,1910.0,3.59513]
[1688323425031,3.62691,1910.1,1910.0,3.281]
[1688323425327,3.62691,1910.1,1910.0,1.0102]
[1688323425626,3.62691,1910.1,1909.8,3.281]
[1688323425823,3.52195,1909.9,1909.8,3.59516]
[1688323430643,3.83062801,1909.9,1909.8,3.59516]
[1688323430934,3.83062801,1909.9,1909.6,0.94259]
[1688323431140,3.52198,1909.7,1909.6,0.94259]
[1688323431331,3.52198,1909.7,1909.6,4.24559]
[1688323431530,3.74412557,1909.7,1909.6,4.24559]
[1688323431938,3.74412557,1909.7,1909.6,4.53230635]
[1688323431939,0.22214557,1909.7,1909.6,4.53230635]
[1688323440544,1.19710144,1909.9,1909.6,4.53230635]
[1688323440742,1.19710144,1909.9,1909.8,3.298]
[1688323440941,1.48381779,1909.9,1909.8,3.89887635]
[1688323441651,1.19710144,1909.9,1909.8,3.89887635]
[1688323442144,0.41167144,1909.9,1909.8,3.89887635]
[1688323442348,0.41167144,1909.9,1909.8,3.90387635]
[1688323442546,8.62425,1910.0,1909.8,3.90387635]
[1688323442743,9.038218,1910.0,1909.9,3.281]
[1688323442942,9.038218,1910.0,1909.9,3.59515]
[1688323443351,9.42993435,1910.0,1909.9,0.31415]
[1688323443550,9.42993435,1910.0,1909.8,3.61216]
[1688323443845,0.56748412,1909.9,1909.8,3.61216]
[1688323444042,0.88163412,1909.9,1909.8,3.61216]
[1688323445550,1.09652135,1909.9,1909.8,3.61216]
[1688323449454,1.09652135,1909.9,1909.8,3.298]
[1688323452150,5.8775945,1909.9,1909.8,3.298]
[1688323454147,7.50369147,1909.9,1909.8,3.298]
[1688323454848,16.24608443,1909.9,1909.6,3.303]
[1688323455150,7.98887315,1909.7,1909.6,3.303]
[1688323455354,8.87053727,1909.7,1909.6,3.303]
[1688323455950,10.48084548,1909.7,1909.6,3.303]
[1688323456151,8.87053727,1909.7,1909.6,3.303]
[1688323456644,10.47942792,1909.7,1909.6,3.303]
[1688323457043,8.87053727,1909.7,1909.6,3.303]
[1688323457655,0.28671635,1909.6,1909.2,0.78555]
[1688323457948,3.52205,1909.3,1909.2,4.08855]
[1688323458145,3.80876635,1909.3,1909.2,4.08855]
[1688323458342,4.37625047,1909.3,1909.2,4.08855]
[1688323461059,4.37625047,1909.3,1909.2,4.49943407]
[1688323462650,4.37625047,1909.3,1909.2,4.08855]
[1688323463548,4.37625047,1909.3,1909.2,3.303]
[1688323463745,4.37625047,1909.3,1909.2,3.39249052]
[1688323465956,4.37625047,1909.3,1909.2,3.70675052]
[1688323467859,4.79875131,1909.3,1909.2,3.70675052]
[1688323469867,4.79875131,1909.3,1909.2,3.39249052]
[1688323470057,8.10175131,1909.3,1909.2,0.08949052]
[1688323484971,8.10175131,1909.3,1909.0,4.9154]
[1688323485166,6.4858,1909.1,1909.0,4.9154]
[1688323485366,7.65428047,1909.1,1908.9,5.0493]
[1688323485572,7.65428047,1909.1,1909.0,0.18794334]
[1688323486081,7.65428047,1909.1,1908.9,0.0078573]
[1688323486265,12.56978047,1909.1,1908.9,0.0078573]
[1688323486472,12.56978047,1909.1,1909.0,0.18836088]
[1688323486877,12.56978047,1909.1,1908.9,0.0078573]
[1688323487073,12.56978047,1909.1,1909.0,0.14128184]
[1688323489266,7.65428047,1909.1,1909.0,0.14128184]
[1688323489669,7.65428047,1909.1,1908.9,0.0078573]
[1688323489869,3.278,1909.0,1908.9,0.0078573]
[1688323490076,8.4702,1909.0,1908.9,0.0078573]
[1688323492478,8.4702,1909.0,1908.9,0.08849097]
[1688323493268,8.4702,1909.0,1908.9,0.0078573]
[1688323496277,8.4702,1909.0,1908.9,0.0885761]
[1688323497268,8.4702,1909.0,1908.9,0.4028861]
[1688323497670,3.5923,1909.0,1908.9,0.4028861]
[1688323499082,3.278,1909.0,1908.9,0.68960245]
[1688323499285,3.62584496,1909.1,1908.9,3.99260245]
[1688323499672,3.62584496,1909.1,1909.0,0.88178412]
[1688323500074,3.62584496,1909.1,1909.0,0.96258812]
[1688323500679,3.91256131,1909.1,1909.0,0.96258812]
[1688323502675,3.91256131,1909.1,1909.0,4.24358812]
[1688323506181,3.91256131,1909.1,1909.0,9.36488812]
[1688323507285,0.0078573,1909.2,1909.0,9.36488812]
[1688323507487,0.0078573,1909.2,1909.1,3.58971635]
[1688323507684,0.0078573,1909.2,1909.1,3.90399635]
[1688323508591,0.18348967,1909.2,1909.1,3.90399635]
[1688323508782,3.2078,1909.5,1909.1,3.90399635]
[1688323508976,3.2078,1909.5,1909.4,0.31423]
[1688323509182,4.06200047,1909.5,1909.4,0.31423]
[1688323511692,4.06200047,1909.5,1909.4,5.14503]
[1688323511888,4.06200047,1909.5,1909.4,5.43174635]
[1688323512289,3.49451635,1909.5,1909.4,5.43174635]
[1688323513291,3.2078,1909.5,1909.4,5.43174635]
[1688323514889,3.49451635,1909.5,1909.4,5.43174635]
[1688323515196,3.49451635,1909.5,1909.4,5.14503]
[1688323515395,3.49451635,1909.5,1909.4,5.43174635]
[1688323515585,3.2078,1909.5,1909.4,5.43174635]
[1688323517093,3.49451635,1909.5,1909.4,5.43174635]
[1688323517997,3.2078,1909.5,1909.4,5.43174635]
[1688323518188,0.42500399,1909.6,1909.4,8.71274635]
[1688323518389,0.42500399,1909.6,1909.5,0.56748412]
[1688323518598,0.42500399,1909.6,1909.5,0.88169412]
[1688323520691,0.60954942,1909.6,1909.5,0.88169412]
[1688323522802,0.60954942,1909.6,1909.5,4.18469412]
[1688323540807,0.1924011,1909.6,1909.5,4.18469412]
[1688323541006,0.47911745,1909.6,1909.5,3.61721]
[1688323541205,0.79331745,1909.6,1909.5,3.61721]
[1688323542310,0.47911745,1909.6,1909.5,3.61721]
[1688323544412,0.1924011,1909.6,1909.5,3.61721]
[1688323544610,0.47911745,1909.6,1909.5,3.61721]
[1688323545416,0.79331745,1909.6,1909.5,3.61721]
[1688323546016,0.79331745,1909.6,1909.5,0.31421]
[1688323547415,0.67248412,1909.5,1909.2,0.9427]
[1688323547613,3.2078,1909.3,1909.2,0.9427]
[1688323547919,4.08953412,1909.3,1909.2,0.9427]
[1688323548119,4.16364462,1909.3,1909.2,0.9427]
[1688323548312,4.08953412,1909.3,1909.2,0.9427]
[1688323560125,4.51095301,1909.3,1909.2,0.9427]
[1688323569940,7.81395301,1909.3,1909.0,1.21303222]
[1688323570242,3.2078,1909.1,1909.0,0.3143]
[1688323570434,4.08956412,1909.1,1909.0,0.3143]
[1688323570939,4.37628047,1909.1,1909.0,0.3143]
[1688323571139,4.37628047,1909.1,1908.9,14.3192073]
[1688323571537,4.37628047,1909.1,1908.9,14.73779023]
[1688323571738,9.68208047,1909.1,1908.9,14.73779023]
[1688323572833,12.98508047,1909.1,1908.9,11.43479023]
[1688323573835,7.67928047,1909.1,1908.9,11.43479023]
[1688323575539,7.67928047,1909.1,1908.9,11.72150658]
[1688323579634,3.2078,1909.1,1909.0,3.298]
[1688323579844,6.93221889,1909.3,1909.0,4.17978412]
[1688323580042,3.62921889,1909.3,1909.2,3.298]
[1688323580240,0.42141889,1909.3,1909.2,4.17975412]
[1688323580742,3.278,1909.4,1909.2,4.17975412]
[1688323581150,3.278,1909.4,1909.3,0.28671635]
[1688323581450,3.278,1909.4,1909.3,0.60096635]
[1688323581946,3.69289872,1909.4,1909.3,0.60096635]
[1688323582739,0.41489872,1909.4,1909.3,3.90396635]
[1688323583048,3.2078,1909.5,1909.3,3.90396635]
[1688323583247,3.49451635,1909.5,1909.3,3.90396635]
[1688323585848,3.90885723,1909.5,1909.3,3.90396635]
[1688323590952,3.90885723,1909.5,1909.3,9.11326635]
[1688323594450,4.22307723,1909.5,1909.3,9.11326635]
[1688323594648,9.03167723,1909.5,1909.3,9.11326635]
[1688323596453,9.03167723,1909.5,1909.3,8.82655]
[1688323601748,9.03167723,1909.5,1909.3,9.11326635]
[1688323603051,9.03167723,1909.5,1909.3,3.61725]
[1688323603253,4.18471412,1909.4,1909.2,0.31427]
[1688323603556,3.80876635,1909.3,1909.2,0.31427]
[1688323608552,3.49451635,1909.3,1909.2,0.31427]
[1688323608759,3.49451635,1909.3,1909.2,5.37227]
[1688323609056,3.49451635,1909.3,1909.2,5.65898635]
[1688323611960,3.49451635,1909.3,1909.2,5.37227]
[1688323615165,3.49451635,1909.3,1909.2,5.65898635]
[1688323615358,3.49451635,1909.3,1909.2,5.37227]
[1688323616368,3.90852956,1909.3,1909.2,5.37227]
[1688323618067,3.90852956,1909.3,1909.2,5.65898635]
[1688323620172,3.62181321,1909.3,1909.2,5.65898635]
[1688323620572,3.90852956,1909.3,1909.2,5.65898635]
[1688323622264,0.70072956,1909.3,1909.2,5.65898635]
[1688323622870,0.70072956,1909.3,1909.2,8.93998635]
[1688323625173,0.41401321,1909.3,1909.2,8.93998635]
[1688323625477,8.1116,1909.5,1909.2,8.93998635]
[1688323626075,0.28671635,1909.4,1909.2,8.93998635]
[1688323626775,3.303,1909.5,1909.3,0.56748412]
[1688323626976,8.01972966,1909.6,1909.4,3.90394635]
[1688323627273,8.30644601,1909.6,1909.4,3.90394635]
[1688323627477,8.01972966,1909.6,1909.4,3.90394635]
[1688323627775,3.21565567,1909.6,1909.5,0.56748412]
[1688323627974,3.21565567,1909.6,1909.5,0.88170412]
[1688323630280,3.63518724,1909.6,1909.5,0.88170412]
[1688323632870,3.63518724,1909.6,1909.5,4.18470412]
[1688323636485,0.42738724,1909.6,1909.5,4.18470412]
[1688323636683,0.00785567,1909.6,1909.5,7.48770412]
[1688323637182,0.00785567,1909.6,1909.5,20.64120412]
[1688323638880,0.00785567,1909.6,1909.5,21.06720216]
[1688323640078,0.29457202,1909.6,1909.5,17.76420216]
[1688323640280,0.00785567,1909.6,1909.5,17.76420216]
[1688323640682,0.2828705,1909.6,1909.5,17.76420216]
[1688323640884,0.00785567,1909.6,1909.5,17.76420216]
[1688323641076,0.2828591,1909.6,1909.5,17.76420216]
[1688323642689,0.2828591,1909.6,1909.5,21.06720216]
[1688323646080,0.2828591,1909.6,1909.5,17.85940216]
[1688323661097,0.47163105,1909.6,1909.5,17.85940216]
[1688323662796,0.42227696,1909.6,1909.5,17.85940216]
[1688323663098,22.2964,1910.1,1909.5,17.85940216]
[1688323663295,8.2994,1910.1,1910.0,3.303]
[1688323663494,9.15360047,1910.1,1910.0,3.61713]